fUST/lending_fUST_20240925
["ID","MTS","AMOUNT","RATE_DAILY","PERIOD"]
[339076426,1727206247152,-616.479181,0.000265,7]
[339076427,1727206247162,-616.479181,0.000265,7]
[339076428,1727206247171,-192.428231,0.000265,7]
[339076429,1727206247181,-192.428231,0.000265,7]
[339076430,1727206247191,-3000.0,0.0002651,2]
[339076431,1727206247202,-3000.0,0.0002652,2]
[339076432,1727206247211,-3000.0,0.0002653,2]
[339076433,1727206247221,-3000.0,0.0002654,2]
[339076434,1727206247231,-3000.0,0.0002655,2]
[339076435,1727206247240,-1000.0,0.00026559,2]
[339076436,1727206247250,-3000.0,0.0002656,2]
[339076437,1727206247258,-3000.0,0.0002657,2]
[339076438,1727206247267,-1000.0,0.00026577,2]
[339076439,1727206247277,-151.0,0.0002658,7]
[339076440,1727206247286,-151.0,0.0002658,7]
[339076441,1727206247296,-151.0,0.0002658,7]
[339076442,1727206247306,-151.0,0.0002658,7]
[339076443,1727206247315,-151.0,0.0002658,7]
[339076444,1727206247325,-545.94284,0.0002658,7]
[339076445,1727206247335,-545.94284,0.0002658,7]
[339076446,1727206247344,-216.355543,0.0002658,7]
[339076447,1727206247354,-216.355543,0.0002658,7]
[339076448,1727206247364,-151.0,0.0002658,7]
[339076449,1727206247373,-3000.0,0.0002658,2]
[339076450,1727206247382,-1000.0,0.00026584,2]
[339076451,1727206247392,-3000.0,0.0002659,2]
[339076452,1727206247401,-1000.0,0.00026592,2]
[339076453,1727206247410,-154.737,0.00026597,2]
[339076454,1727206247420,-214.172,0.00026597,2]
[339076455,1727206247429,-3000.0,0.000266,2]
[339076456,1727206247439,-625.0,0.000266,2]
[339076457,1727206247453,-3000.0,0.0002661,2]
[339076458,1727206247468,-3000.0,0.0002662,2]
[339076459,1727206247478,-880.941164,0.0002663,2]
[339076460,1727206247789,-892.22890917,0.0002663,2]
[339076461,1727206247801,-510.76400248,0.0002663,2]
[339076462,1727206247812,-2442.43411248,0.0002663,2]
[339076463,1727206247830,-378.25578587,0.0002663,2]
[339076464,1727206247839,-1000.0,0.00026637,2]
[339076465,1727206247849,-1000.0,0.00026645,2]
[339076466,1727206247859,-361.24522872,0.00026673,2]
[339076467,1727206247870,-1000.0,0.00026685,2]
[339076468,1727206247879,-307.69781721,0.00026689,2]
[339076469,1727206247889,-161.03443495,0.00026689,2]
[339076470,1727206247899,-160.0,0.00026689,2]
[339076471,1727206247909,-46928.16029106,0.0002669,2]
[339076472,1727206247929,-12760.0,0.0002669,2]
[339076494,1727206537138,2146.5712728,0.000136,2]
[339076495,1727206585173,1360.0296206,0.000136,2]
[339076496,1727206585431,179.39,0.00010959,2]
[339076497,1727206606129,169.203306,0.00013699,2]
[339076498,1727206607176,-1700.0,0.000145,2]
[339076499,1727206631812,221.568908,0.00013702,2]
[339076500,1727206632480,221.568908,0.00013739,2]
[339076501,1727206632635,221.568908,0.00013777,2]
[339076502,1727206632861,221.568908,0.00013814,2]
[339076503,1727206633119,221.568908,0.00013852,2]
[339076504,1727206633596,221.568908,0.0001389,2]
[339076505,1727206633816,221.568908,0.00013927,2]
[339076506,1727206634081,221.568908,0.00013965,2]
[339076507,1727206634319,221.568908,0.00014002,2]
[339076508,1727206634557,221.568908,0.0001404,2]
[339076509,1727206634794,221.568908,0.00014077,2]
[339076510,1727206691972,-221.568908,0.00014115,2]
[339076511,1727206692007,-221.568908,0.00014153,2]
[339076512,1727206692042,-221.568908,0.0001419,2]
[339076513,1727206692074,-221.568908,0.00014228,2]
[339076514,1727206692109,-221.568908,0.00014265,2]
[339076515,1727206692141,-221.568908,0.00014303,2]
[339076516,1727206692175,-221.568908,0.00014341,2]
[339076517,1727206692209,-176.46638,0.00014378,2]
[339076518,1727206692351,-45.102528,0.00014378,2]
[339076521,1727206807068,24900.0,0.0001356,2]
[339076522,1727206858380,250.0,0.00013559,2]
[339076524,1727207150598,169.203306,0.00013699,2]
[339076554,1727207191153,-221.568908,0.00014416,2]
[339076555,1727207191177,-1810.49117265,0.00014475,2]
[339076562,1727207403400,24900.0,0.00013493,2]
[339076666,1727207438025,-6060.61946772,0.00014461,2]
[339076668,1727207438035,-1572.19429646,0.00014476,2]
[339076669,1727207438046,-1572.19429643,0.00014477,2]
[339076670,1727207438057,-300.0,0.00014478,2]
[339076671,1727207438067,-1572.19429643,0.00014479,2]
[339076672,1727207438078,-1572.19429643,0.0001448,2]
[339076673,1727207438087,-1572.19429643,0.00014481,2]
[339076674,1727207438096,-220.88854168,0.0001456,2]
[339076675,1727207438106,-500.0,0.0001456,2]
[339076676,1727207438117,-504.33662964,0.0001456,2]
[339076677,1727207438127,-500.0,0.0001456,2]
[339076678,1727207438137,-167.48425583,0.0001456,2]
[339076679,1727207438148,-500.0,0.0001456,2]
[339076680,1727207438159,-500.0,0.0001456,2]
[339076681,1727207438169,-500.0,0.0001456,2]
[339076682,1727207438179,-500.0,0.0001456,2]
[339076683,1727207438188,-500.0,0.0001456,2]
[339076684,1727207438197,-500.0,0.0001456,2]
[339076685,1727207438207,-500.0,0.0001456,2]
[339076686,1727207438218,-395.03202294,0.0001456,2]
[339076687,1727207438229,-153.50098788,0.0001456,2]
[339076688,1727207438240,-1307.73271856,0.0001456,2]
[339076689,1727207438251,-1307.73271856,0.0001456,2]
[339076690,1727207438260,-1307.73271856,0.0001456,2]
[339076691,1727207438270,-1307.73271856,0.0001456,2]
[339076692,1727207438292,-500.0,0.0001456,2]
[339076693,1727207438302,-1307.73271856,0.0001456,2]
[339076694,1727207438312,-1307.73271856,0.0001456,2]
[339076695,1727207438322,-1307.73271856,0.0001456,2]
[339076696,1727207438332,-1307.73271856,0.0001456,2]
[339076697,1727207438343,-1307.73271856,0.0001456,2]
[339076698,1727207438354,-1307.73271856,0.0001456,2]
[339076699,1727207438365,-500.0,0.0001456,2]
[339076700,1727207438375,-1307.73271856,0.0001456,2]
[339076701,1727207438385,-1307.73271856,0.0001456,2]
[339076702,1727207438395,-1307.73271856,0.0001456,2]
[339076703,1727207438405,-1307.73271856,0.0001456,2]
[339076704,1727207438414,-1307.73271856,0.0001456,2]
[339076705,1727207438425,-1307.73271856,0.0001456,2]
[339076706,1727207438435,-1307.73271856,0.0001456,2]
[339076707,1727207438445,-1307.73271856,0.0001456,2]
[339076708,1727207438454,-1307.73271856,0.0001456,2]
[339076709,1727207438465,-1307.73271856,0.0001456,2]
[339076710,1727207438475,-1307.73271856,0.0001456,2]
[339076711,1727207438485,-1307.73271856,0.0001456,2]
[339076712,1727207438495,-1307.73271856,0.0001456,2]
[339076713,1727207438506,-1307.73271856,0.0001456,2]
[339076714,1727207438516,-1307.73271856,0.0001456,2]
[339076715,1727207438526,-1307.73271856,0.0001456,2]
[339076716,1727207438535,-1307.73271856,0.0001456,2]
[339076717,1727207438545,-1307.73271856,0.0001456,2]
[339076718,1727207438555,-1307.73271856,0.0001456,2]
[339076719,1727207438565,-500.0,0.0001456,2]
[339076720,1727207438576,-1307.73271856,0.0001456,2]
[339076721,1727207438586,-1307.73271856,0.0001456,2]
[339076722,1727207438599,-1307.73271856,0.0001456,2]
[339076723,1727207438610,-1307.73271856,0.0001456,2]
[339076724,1727207438620,-1307.73271856,0.0001456,2]
[339076725,1727207438630,-1307.73271856,0.0001456,2]
[339076726,1727207438642,-1307.73271856,0.0001456,2]
[339076727,1727207438652,-1307.73271856,0.0001456,2]
[339076728,1727207438661,-1307.73271856,0.0001456,2]
[339076729,1727207438674,-1307.73271856,0.0001456,2]
[339076730,1727207438684,-1307.73271856,0.0001456,2]
[339076731,1727207438694,-1307.73271856,0.0001456,2]
[339076732,1727207438704,-1307.73271856,0.0001456,2]
[339076733,1727207438714,-1307.73271856,0.0001456,2]
[339076734,1727207438725,-1307.73271856,0.0001456,2]
[339076735,1727207438734,-1307.73271856,0.0001456,2]
[339076736,1727207438744,-1307.73271856,0.0001456,2]
[339076737,1727207438754,-1307.73271856,0.0001456,2]
[339076738,1727207438764,-1307.73271856,0.0001456,2]
[339076739,1727207438774,-1307.73271856,0.0001456,2]
[339076740,1727207438784,-1307.73271856,0.0001456,2]
[339076741,1727207438794,-1307.73271856,0.0001456,2]
[339076742,1727207438804,-1307.73271856,0.0001456,2]
[339076743,1727207438815,-1307.73271856,0.0001456,2]
[339076744,1727207438825,-1307.73271856,0.0001456,2]
[339076745,1727207438836,-1307.73271856,0.0001456,2]
[339076746,1727207438846,-1307.73271856,0.0001456,2]
[339076747,1727207438856,-1307.73271856,0.0001456,2]
[339076748,1727207438865,-1307.73271856,0.0001456,2]
[339076749,1727207438875,-1307.73271856,0.0001456,2]
[339076750,1727207438885,-1307.73271856,0.0001456,2]
[339076751,1727207438900,-1307.73271856,0.0001456,2]
[339076752,1727207438909,-1307.73271856,0.0001456,2]
[339076753,1727207438920,-1307.73271856,0.0001456,2]
[339076754,1727207438931,-1307.73271856,0.0001456,2]
[339076755,1727207438941,-1307.73271856,0.0001456,2]
[339076756,1727207438951,-1307.73271856,0.0001456,2]
[339076757,1727207438961,-1307.73271856,0.0001456,2]
[339076758,1727207438971,-1307.73271856,0.0001456,2]
[339076759,1727207438981,-1307.73271856,0.0001456,2]
[339076760,1727207438991,-161.79766387,0.00014561,2]
[339076761,1727207439001,-104065.911942,0.00014562,2]
[339076762,1727207439011,-6304.11658815,0.00014562,2]
[339076763,1727207439020,-312197.735826,0.00014566,2]
[339076764,1727207439031,-18912.3497645,0.00014566,2]
[339076765,1727207439041,-44128.816117,0.00014569,2]
[339076766,1727207439051,-12608.2331763,0.00014571,2]
[339076767,1727207439062,-383.04284307,0.00014573,2]
[339076768,1727207439073,-377.26870101,0.00014573,2]
[339076769,1727207439084,-411.26763282,0.00014573,2]
[339076770,1727207439096,-500.0,0.00014573,2]
[339076771,1727207439106,-500.0,0.00014573,2]
[339076772,1727207439116,-500.0,0.00014573,2]
[339076773,1727207439126,-500.0,0.00014573,2]
[339076774,1727207439136,-500.0,0.00014573,2]
[339076775,1727207439146,-500.0,0.00014573,2]
[339076776,1727207439156,-500.42397548,0.00014573,2]
[339076777,1727207439166,-500.0,0.00014573,2]
[339076778,1727207439176,-500.0,0.00014573,2]
[339076779,1727207439187,-500.0,0.00014573,2]
[339076780,1727207439197,-500.0,0.00014573,2]
[339076781,1727207439207,-628.71719174,0.00014573,2]
[339076782,1727207439218,-500.0,0.00014573,2]
[339076783,1727207439228,-6304.11658815,0.00014579,2]
[339076784,1727207439238,-2000.0,0.00014589,2]
[339076785,1727207439248,-2000.0,0.00014589,2]
[339076786,1727207439257,-2000.0,0.00014589,2]
[339076787,1727207439268,-2000.0,0.00014589,2]
[339076788,1727207439278,-2000.0,0.00014589,2]
[339076790,1727207439288,-2000.0,0.00014589,2]
[339076791,1727207439297,-2000.0,0.00014589,2]
[339076792,1727207439307,-2000.0,0.00014589,2]
[339076793,1727207439448,-2000.0,0.00014589,2]
[339076794,1727207439457,-2000.0,0.00014589,2]
[339076795,1727207439470,-2000.0,0.00014589,2]
[339076796,1727207439479,-2000.0,0.00014589,2]
[339076797,1727207439489,-2000.0,0.00014591,2]
[339076798,1727207439499,-2000.0,0.00014591,2]
[339076799,1727207439509,-2000.0,0.00014591,2]
[339076800,1727207439521,-2000.0,0.00014591,2]
[339076801,1727207439532,-150.112233,0.000146,2]
[339076802,1727207439544,-150.112233,0.000146,2]
[339076803,1727207439554,-160.612766,0.000146,2]
[339076804,1727207439564,-546.25122095,0.00014673,2]
[339076805,1727207439578,-500.0,0.00015,2]
[339076806,1727207439588,-150.112233,0.000151,2]
[339076807,1727207439598,-1000.0,0.00015121,2]
[339076808,1727207439609,-1004.80866085,0.00015121,2]
[339076809,1727207439619,-414.58355694,0.00015121,2]
[339076810,1727207439628,-1111.55817384,0.00015121,2]
[339076811,1727207439638,-1000.0,0.00015121,2]
[339076812,1727207439649,-1000.0,0.00015121,2]
[339076813,1727207439658,-1000.0,0.00015121,2]
[339076814,1727207439668,-1000.0,0.00015121,2]
[339076815,1727207439679,-471.73219564,0.00015548,2]
[339076816,1727207439689,-150.112233,0.000157,2]
[339076817,1727207439698,-150.112233,0.000157,2]
[339076818,1727207439708,-420.0,0.00015925,2]
[339076819,1727207439718,-236.86643405,0.000161,2]
[339076820,1727207439728,-236.86643404,0.000161,2]
[339076821,1727207439738,-236.86643404,0.000161,2]
[339076822,1727207439748,-1500.0,0.00016122,2]
[339076824,1727207439759,-500.0,0.00016122,2]
[339076825,1727207439769,-1287.31931036,0.00016122,2]
[339076826,1727207439779,-1436.39196174,0.00016122,2]
[339076827,1727207439789,-1500.0,0.00016122,2]
[339076828,1727207439800,-150.112233,0.000162,2]
[339076829,1727207439810,-150.112233,0.000168,2]
[339076830,1727207439820,-150.112233,0.000168,2]
[339076831,1727207439833,-150.112233,0.000173,2]
[339076832,1727207439843,-1331.32540504,0.0001742,2]
[339076834,1727207439853,-2000.0,0.0001742,2]
[339076836,1727207439863,-6060.61946768,0.00017469,2]
[339076837,1727207439873,-587.0,0.00017518,2]
[339076838,1727207439883,-150.112233,0.000178,2]
[339076839,1727207439892,-150.112233,0.000179,2]
[339076840,1727207439902,-6304.11658815,0.0001799,2]
[339076841,1727207439912,-1051.39958418,0.00018,2]
[339076842,1727207439923,-150.112233,0.000184,2]
[339076843,1727207439932,-150.112233,0.000189,2]
[339076844,1727207439943,-150.112233,0.000189,2]
[339076845,1727207439953,-2500.0,0.00018956,2]
[339076846,1727207439962,-162.746518,0.00019178,2]
[339076847,1727207439972,-167.112026,0.00019178,2]
[339076848,1727207439982,-823.0,0.0001927,2]
[339076849,1727207439992,-150.112233,0.000195,2]
[339076850,1727207440002,-500.0,0.00019973,2]
[339076851,1727207440012,-500.0,0.00019973,2]
[339076852,1727207440021,-200.2182633,0.00019973,2]
[339076853,1727207440032,-500.0,0.00019973,2]
[339076854,1727207440042,-500.0,0.00019973,2]
[339076855,1727207440052,-500.0,0.00019973,2]
[339076856,1727207440061,-500.0,0.00019973,2]
[339076857,1727207440071,-500.0,0.00019973,2]
[339076858,1727207440081,-500.0,0.00019973,2]
[339076859,1727207440091,-387.83972564,0.00019973,2]
[339076860,1727207440100,-31520.5829407,0.0001999,3]
[339076861,1727207440111,-160.0,0.00019999,2]
[339076862,1727207440121,-202.215184,0.0002,2]
[339076863,1727207440131,-202.215184,0.0002,2]
[339076864,1727207440141,-55671.48703494,0.0002,2]
[339076865,1727207440150,-151.0,0.0002,2]
[339076866,1727207440162,-151.0,0.0002,2]
[339076867,1727207440171,-251.124401,0.0002,2]
[339076868,1727207440181,-251.124401,0.0002,2]
[339076869,1727207440191,-150.112233,0.0002,3]
[339076870,1727207440200,-120044.28900728,0.0002,2]
[339076871,1727207440219,-738.0,0.0002,2]
[339076872,1727207440576,-102616.27128948,0.0002,2]
[339076873,1727207440585,-151.0,0.0002,2]
[339076874,1727207440597,-151.0,0.0002,2]
[339076875,1727207440609,-461.613163,0.0002,2]
[339076876,1727207440621,-461.613163,0.0002,2]
[339076877,1727207440630,-151.0,0.0002,2]
[339076878,1727207440641,-151.0,0.0002,2]
[339076879,1727207440651,-151.0,0.0002,2]
[339076880,1727207440663,-151.0,0.0002,2]
[339076881,1727207440672,-663.697198,0.0002,2]
[339076882,1727207440683,-663.697198,0.0002,2]
[339076883,1727207440693,-1115.911071,0.0002,2]
[339076884,1727207440704,-1115.911071,0.0002,2]
[339076885,1727207440714,-151.0,0.0002,2]
[339076886,1727207440723,-6060.61946768,0.00020477,2]
[339076887,1727207440734,-1000.0,0.00020521,2]
[339076888,1727207440744,-1000.0,0.00020521,2]
[339076889,1727207440755,-695.58333689,0.00020521,2]
[339076890,1727207440766,-1000.0,0.00020521,2]
[339076891,1727207440776,-1000.0,0.00020521,2]
[339076892,1727207440785,-674.0789693,0.00020521,2]
[339076893,1727207440795,-1005.61499426,0.00020521,2]
[339076894,1727207440804,-300.35288752,0.00020521,2]
[339076895,1727207440815,-3000.0,0.00020699,2]
[339076896,1727207440827,-500.0,0.00021,30]
[339076897,1727207440932,-500.0,0.00021,30]
[339076898,1727207440942,-511.0531615,0.00021,30]
[339076899,1727207440951,-503.11332835,0.00021,30]
[339076900,1727207440961,-500.0,0.00021,30]
[339076901,1727207440970,-500.0,0.00021,30]
[339076902,1727207440979,-500.0,0.00021,30]
[339076903,1727207440989,-500.0,0.00021,30]
[339076904,1727207440998,-923.50062393,0.00021,30]
[339076905,1727207441007,-500.0,0.00021,30]
[339076906,1727207441016,-500.0,0.00021,30]
[339076907,1727207441026,-500.0,0.00021,30]
[339076908,1727207441035,-503.93301184,0.00021,30]
[339076909,1727207441045,-500.0,0.00021,30]
[339076910,1727207441055,-500.0,0.00021,30]
[339076911,1727207441065,-500.0,0.00021,30]
[339076912,1727207441076,-500.0,0.00021,30]
[339076913,1727207441085,-500.0,0.00021,30]
[339076914,1727207441095,-500.0,0.00021,30]
[339076915,1727207441105,-508.26061031,0.00021,30]
[339076916,1727207441115,-500.0,0.00021,30]
[339076917,1727207441126,-500.0,0.00021,30]
[339076918,1727207441135,-500.0,0.00021,30]
[339076919,1727207441144,-500.0,0.00021,30]
[339076920,1727207441153,-500.0,0.00021,30]
[339076921,1727207441163,-500.0,0.00021,30]
[339076922,1727207441172,-500.0,0.00021,30]
[339076923,1727207441182,-500.0,0.00021,30]
[339076924,1727207441191,-880.43717047,0.00021,30]
[339076925,1727207441200,-500.0,0.00021,30]
[339076926,1727207441209,-500.0,0.00021,30]
[339076927,1727207441219,-500.0,0.00021,30]
[339076928,1727207441228,-500.0,0.00021,30]
[339076929,1727207441237,-500.0,0.00021,30]
[339076930,1727207441246,-500.0,0.00021,30]
[339076931,1727207441256,-500.0,0.00021,30]
[339076932,1727207441265,-500.0,0.00021,30]
[339076933,1727207441275,-500.0,0.00021,30]
[339076934,1727207441285,-500.0,0.00021,30]
[339076935,1727207441295,-500.0,0.00021,30]
[339076936,1727207441304,-500.0,0.00021,30]
[339076937,1727207441314,-500.0,0.00021,30]
[339076938,1727207441324,-500.0,0.00021,30]
[339076939,1727207441334,-500.0,0.00021,30]
[339076940,1727207441344,-500.0,0.00021,30]
[339076941,1727207441353,-500.0,0.00021,30]
[339076942,1727207441362,-500.0,0.00021,30]
[339076943,1727207441371,-500.0,0.00021,30]
[339076944,1727207441381,-500.0,0.00021,30]
[339076945,1727207441390,-607.7783795,0.00021,30]
[339076946,1727207441400,-719.25635735,0.00021,2]
[339076947,1727207441409,-574.421979,0.00021,2]
[339076948,1727207441419,-574.421979,0.00021,2]
[339076949,1727207441428,-860.412962,0.00021,2]
[339076950,1727207441438,-860.412962,0.00021,2]
[339076951,1727207441447,-641.077636,0.00021,2]
[339076952,1727207441457,-641.077636,0.00021,2]
[339076953,1727207441466,-259.499632,0.00021,2]
[339076954,1727207441476,-259.499632,0.00021,2]
[339076955,1727207441486,-328.59027,0.00021,2]
[339076956,1727207441495,-328.59027,0.00021,2]
[339076957,1727207441505,-151.0,0.00021,2]
[339076958,1727207441515,-151.0,0.00021,2]
[339076959,1727207441524,-150.112233,0.000211,3]
[339076960,1727207441534,-1152.0,0.00021197,2]
[339076961,1727207441551,-403.1987415,0.00021522,2]
[339076962,1727207441571,-264.65191428,0.00021522,2]
[339076963,1727207441590,-1500.0,0.00021522,2]
[339076964,1727207441613,-1500.0,0.00021522,2]
[339076965,1727207441633,-166.666666,0.00021918,2]
[339076966,1727207441650,-310.631157,0.00021918,2]
[339076967,1727207441668,-310.631157,0.00021918,2]
[339076968,1727207441684,-153.90881046,0.0002192,7]
[339076969,1727207441700,-153.90881046,0.0002192,7]
[339076970,1727207441719,-153.90881046,0.0002192,7]
[339076971,1727207441737,-153.90881046,0.0002192,7]
[339076972,1727207441749,-153.90881046,0.0002192,7]
[339076973,1727207441766,-153.90881046,0.0002192,7]
[339076974,1727207441782,-153.90881046,0.0002192,7]
[339076975,1727207441797,-154.4,0.0002192,7]
[339076976,1727207441809,-246.32909674,0.0002192,7]
[339076977,1727207441824,-246.32909674,0.0002192,7]
[339076978,1727207441841,-246.32909674,0.0002192,7]
[339076979,1727207441856,-246.32909674,0.00021928,7]
[339076980,1727207441871,-624.96281787,0.0002205,2]
[339076981,1727207441885,-246.32909674,0.00022189,7]
[339076982,1727207441899,-150.112233,0.000222,2]
[339076983,1727207441915,-166.666666,0.00022431,2]
[339076984,1727207441931,-246.32909674,0.0002245,7]
[339076985,1727207441945,-3500.0,0.00022626,2]
[339076986,1727207441960,-246.32909674,0.00022711,7]
[339076987,1727207441974,-2000.0,0.0002282,2]
[339076988,1727207441988,-855.23846113,0.0002282,2]
[339076989,1727207442003,-166.666666,0.00022944,2]
[339076990,1727207442017,-246.32909674,0.00022972,7]
[339076991,1727207442032,-302.45563732,0.00023,2]
[339076992,1727207442046,-172.69366069,0.00023,2]
[339076993,1727207442060,-153.0,0.00023054,2]
[339076994,1727207442074,-153.0,0.00023054,2]
[339076995,1727207442088,-153.0,0.00023054,2]
[339076996,1727207442102,-153.0,0.00023054,2]
[339076997,1727207442116,-153.0,0.00023054,2]
[339076998,1727207442130,-153.0,0.00023054,2]
[339076999,1727207442146,-153.0,0.00023054,2]
[339077000,1727207442161,-153.0,0.00023054,2]
[339077001,1727207442174,-153.0,0.00023054,2]
[339077002,1727207442189,-153.0,0.00023054,2]
[339077003,1727207442204,-153.0,0.00023054,2]
[339077004,1727207442218,-153.0,0.00023054,2]
[339077005,1727207442232,-153.0,0.00023054,2]
[339077006,1727207442246,-153.0,0.00023054,2]
[339077007,1727207442260,-153.0,0.00023054,2]
[339077008,1727207442274,-153.0,0.00023054,2]
[339077009,1727207442288,-153.0,0.00023054,2]
[339077010,1727207442304,-153.0,0.00023054,2]
[339077011,1727207442319,-153.0,0.00023054,2]
[339077013,1727207442340,-153.0,0.00023054,2]
[339077014,1727207442355,-153.0,0.00023054,2]
[339077015,1727207442368,-153.0,0.00023054,2]
[339077016,1727207442383,-153.0,0.00023054,2]
[339077017,1727207442397,-153.0,0.00023054,2]
[339077018,1727207442411,-153.0,0.00023054,2]
[339077019,1727207442425,-153.0,0.00023054,2]
[339077020,1727207442440,-153.0,0.00023054,2]
[339077021,1727207442451,-153.0,0.00023054,2]
[339077022,1727207442460,-153.0,0.00023054,2]
[339077023,1727207442469,-153.0,0.00023054,2]
[339077024,1727207442478,-153.0,0.00023054,2]
[339077025,1727207442488,-153.0,0.00023054,2]
[339077030,1727207442662,-153.0,0.00023054,2]
[339077031,1727207442679,-153.0,0.00023054,2]
[339077032,1727207442689,-153.0,0.00023054,2]
[339077033,1727207442698,-153.0,0.00023054,2]
[339077034,1727207442707,-153.0,0.00023054,2]
[339077035,1727207442717,-153.0,0.00023054,2]
[339077036,1727207442727,-153.0,0.00023054,2]
[339077037,1727207442736,-153.0,0.00023054,2]
[339077038,1727207442746,-153.0,0.00023054,2]
[339077040,1727207442756,-153.0,0.00023054,2]
[339077042,1727207442766,-153.0,0.00023054,2]
[339077043,1727207442775,-153.0,0.00023054,2]
[339077044,1727207442784,-153.0,0.00023054,2]
[339077045,1727207442793,-153.0,0.00023054,2]
[339077046,1727207442802,-153.0,0.00023054,2]
[339077048,1727207442811,-153.0,0.00023054,2]
[339077050,1727207442820,-153.0,0.00023054,2]
[339077051,1727207442831,-153.0,0.00023054,2]
[339077052,1727207442840,-153.0,0.00023054,2]
[339077053,1727207442849,-153.0,0.00023054,2]
[339077054,1727207442858,-153.0,0.00023054,2]
[339077055,1727207442867,-153.0,0.00023054,2]
[339077056,1727207442876,-153.0,0.00023054,2]
[339077057,1727207442885,-153.0,0.00023054,2]
[339077058,1727207442895,-153.0,0.00023054,2]
[339077059,1727207442903,-153.0,0.00023054,2]
[339077060,1727207442913,-153.0,0.00023054,2]
[339077061,1727207442921,-153.0,0.00023054,2]
[339077063,1727207442931,-153.0,0.00023054,2]
[339077065,1727207442940,-153.0,0.00023054,2]
[339077067,1727207442949,-153.0,0.00023054,2]
[339077068,1727207442958,-153.0,0.00023054,2]
[339077069,1727207442967,-153.0,0.00023054,2]
[339077070,1727207442976,-153.0,0.00023054,2]
[339077071,1727207442986,-153.0,0.00023054,2]
[339077072,1727207442996,-153.0,0.00023054,2]
[339077073,1727207443007,-153.0,0.00023054,2]
[339077074,1727207443016,-153.0,0.00023054,2]
[339077075,1727207443025,-153.0,0.00023054,2]
[339077076,1727207443035,-153.0,0.00023054,2]
[339077077,1727207443046,-153.0,0.00023054,2]
[339077078,1727207443057,-153.0,0.00023054,2]
[339077079,1727207443066,-153.0,0.00023054,2]
[339077080,1727207443078,-620.24814089,0.00023153,2]
[339077081,1727207443087,-302.45563732,0.0002323,2]
[339077082,1727207443096,-246.32909674,0.00023233,7]
[339077083,1727207443105,-150.0,0.00023288,7]
[339077084,1727207443115,-500.0,0.00023288,2]
[339077085,1727207443124,-500.0,0.00023288,2]
[339077086,1727207443133,-500.0,0.00023288,2]
[339077087,1727207443143,-500.0,0.00023288,2]
[339077088,1727207443152,-500.0,0.00023288,2]
[339077089,1727207443162,-500.0,0.00023288,2]
[339077090,1727207443172,-500.0,0.00023288,2]
[339077091,1727207443181,-644.98439221,0.00023288,2]
[339077092,1727207443190,-150.112233,0.000233,3]
[339077093,1727207443199,-150.0,0.00023315,7]
[339077094,1727207443209,-1613.0,0.00023316,2]
[339077095,1727207443220,-150.0,0.00023343,7]
[339077096,1727207443231,-150.0,0.0002337,7]
[339077097,1727207443242,-166.666666,0.00023456,2]
[339077098,1727207443253,-302.45563732,0.0002346,2]
[339077099,1727207443263,-6060.61946768,0.00023485,2]
[339077100,1727207443272,-246.32909674,0.00023494,7]
[339077101,1727207443281,-302.45563732,0.0002369,2]
[339077102,1727207443290,-246.32909674,0.00023755,7]
[339077103,1727207443299,-302.45563732,0.0002392,2]
[339077104,1727207443309,-166.666666,0.00023969,2]